Cogmind - Beta 16.1 @@@ ROGUE MODE // 2026.06.17 @ 16:16:11 Player: 0R-LIM Result: Destroyed by NK-Q93(R) with Subdweller Machine Gun Performance ------------- Evolutions (0) 0 Regions Visited (3) 600 Robots Destroyed (13) 65 Value Destroyed (224) 224 Prototype IDs (2) 40 Alien Tech Used (0) 0 Bonus (0) 0 TOTAL SCORE: 929 Bonus ------- None Cogmind --------- Core Integrity 0/250 Matter 209/300 Energy 75/100 System Corruption 10% Temperature Cool (0) Movement Treading (320) Ox2 Location -10/Subcaves Parts ------- > --- POWER (1) -------- (None) > --- PROPULSION (2) --- Light Treads Subdweller Monowheel > --- UTILITY (2) ------ High-capacity Storage Unit Signal Interpreter > --- WEAPON (2) ------- Battle Cannon Subdweller Shrapnel Launcher > --- INVENTORY (20) --- Improved Ion Engine Light Treads Large Storage Unit Subdweller Optics Experimental Sensor Array Seismic Detector Seismic Detector Light Assault Rifle Subdweller Machine Gun Hammer Makeshift Sword Peak State ------------ > --- POWER ------------ Improved Ion Engine > --- PROPULSION ------- Light Treads Subdweller Monowheel > --- UTILITY ---------- High-capacity Storage Unit Signal Interpreter > --- WEAPON ----------- Subdweller Machine Gun Battle Cannon > --- INVENTORY -------- Improved Ion Engine Light Treads Large Storage Unit Subdweller Optics Experimental Sensor Array Seismic Detector Seismic Detector Light Assault Rifle Subdweller Shrapnel Launcher Hammer Makeshift Sword [Rating: 13] Favorites ----------- Power Improved Ion Engine Engine Improved Ion Engine Propulsion Wheel Treads Light Treads Wheel Wheel Utility Signal Interpreter Device Seismic Detector Storage High-capacity Storage Unit Processor Signal Interpreter Weapon Light Assault Rifle Energy Gun EM Pulse Gun Ballistic Gun Light Assault Rifle Ballistic Cannon Battle Cannon Launcher Subdweller Shrapnel Launcher Impact Weapon Hammer Build | -11 -10 -10 -10 ------- Run | Yrd Mat Min Sub Slots Evolved . | . . . . Power . | . . . . Propulsion . | . . . . Utility . | . . . . Weapon . | . . . . Parts Attached 20 | 7 4 3 6 Power 2 | 1 1 . . Engine 2 | 1 1 . . Core . | . . . . Reactor . | . . . . Propulsion 6 | 2 . 2 2 Treads 1 | . . . 1 Leg . | . . . . Wheel 5 | 2 . 2 1 Hover . | . . . . Flight . | . . . . Utility 5 | 2 3 . . Device 1 | 1 . . . Storage 3 | 1 2 . . Processor 1 | . 1 . . Hackware . | . . . . Protection . | . . . . Artifact . | . . . . Weapon 7 | 2 . 1 4 Energy Gun 2 | 1 . 1 . Energy Cannon . | . . . . Ballistic Gun 2 | 1 . . 1 Ballistic Cannon 1 | . . . 1 Launcher 1 | . . . 1 Special Weapon . | . . . . Impact Weapon 1 | . . . 1 Slashing Weapon . | . . . . Piercing Weapon . | . . . . Special Melee Weapon . | . . . . Unidentified Prototypes . | . . . . Parts Lost 7 | . . 3 4 Power 1 | . . . 1 Propulsion 4 | . . 2 2 Utility . | . . . . Weapon 2 | . . 1 1 Highest Loss Streak 3 | . . 3 2 To Critical Strikes . | . . . . Average Backups 9 | 3 8 10 10 Power . | . . 1 1 Propulsion 3 | 1 4 3 1 Utility 3 | . 2 3 4 Weapon 1 | . 1 2 2 Tool/Special . | . . . . Unused Backups 10 | . 4 . 6 Power 2 | . 1 . 1 Propulsion 1 | . . . 1 Utility 4 | . 1 . 3 Weapon 3 | . 2 . 1 Tool/Special . | . . . . Average Slot Usage (%) 97 | . 98 99 94 Engine 13 | . 13 14 13 Wheel 26 | . 28 27 20 Device 2 | . 11 . . Storage 14 | . 14 14 14 Processor 11 | . 2 14 14 Energy Gun 12 | . 14 13 7 Ballistic Gun 12 | . 13 14 8 Ballistic Cannon 1 | . . . 6 Impact Weapon 1 | . . . 4 Peak Build Rating 13 | 7 9 10 13 Average Rating 9 | 5 8 9 10 On Entrance 6 | . 7 9 10 Avg Prop Armor Cover (%) 12 | . . . 12 Naked Turns . | . . . . Heaviest Build 54 | 14 50 51 54 Greatest Support 26 | 26 26 26 20 Greatest Overweight (x) 15 | . 1 15 5 Average Overweight (x) 1 | . . 1 2 Largest Inventory Capacity 20 | 8 20 20 20 Average Capacity 17 | 7 10 20 20 Most Carried 12 | 7 11 11 12 Average Carried 9 | 3 8 10 10 Final Capacity 20 | 8 20 20 20 Final Carried 11 | 7 10 8 11 Class Distribution -------------------- 100% | Mutant Dominant Class ---------------- Mutant | -10/Materials Mutant | -10/Mines Mutant | -10/Subcaves Resources | -11 -10 -10 -10 ----------- Run | Yrd Mat Min Sub Matter Collected 428 | 262 36 50 80 Remotely . | . . . . Salvage Created 386 | 218 125 . 43 Parts 31 | 19 11 . 1 Haulers Intercepted . | . . . . Recyclers Shooed . | . . . . Parts Field Recycled . | . . . . Retrieved Matter . | . . . . Parts Self-Destructed 4 | . . . 4 Prevented . | . . . . Parts Restored . | . . . . Kills | -11 -10 -10 -10 ------- Run | Yrd Mat Min Sub Combat Hostiles Destroyed 7 | . 5 . 2 Guns 6 | . 5 . 1 Cannons 1 | . . . 1 Classes Destroyed 6 | 2 2 . 2 Tunneler 5 | 5 . . . Recycler 1 | 1 . . . Swarmer 3 | . 3 . . Grunt 2 | . 2 . . Sentry 1 | . . . 1 Subdweller 1 | . . . 1 Best Kill Streak 6 | 6 3 . 1 Combat Bots Only 3 | . 3 . 1 Max Kills in Single Turn 1 | 1 1 . 1 Gunslinging . | . . . . Exploded . | . . . . Melee . | . . . . Uniques/NPCs Destroyed . | . . . . Combat | -11 -10 -10 -10 -------- Run | Yrd Mat Min Sub Hostile Shots Fired 50 | . 30 . 20 Missed 12 | . 9 . 3 Hits 38 | . 21 . 17 Projectile 38 | . 21 . 17 Damage Taken 1149 | . 207 310 632 Core 266 | . 66 46 154 Absorbed by Shields . | . . . . Core Remaining (%) 100 | 100 . . . Volleys Fired 34 | 9 14 . 11 Largest 2 | 2 2 . 2 Hottest 78 | 60 60 . 78 Shots Fired 62 | 18 28 . 16 Gun 53 | 18 28 . 7 Cannon 9 | . . . 9 Launcher . | . . . . Special . | . . . . Kinetic 36 | 9 14 . 13 Thermal . | . . . . Explosive . | . . . . Electromagnetic 26 | 9 14 . 3 Robot Hit Streak 9 | 5 4 . 9 Robot Miss Streak 2 | 1 2 . 1 Penetration Max . | . . . . Secondary Targets 1 | . 1 . . Max Gunslinging Chain 1 | . 1 . . Shots Hit Robots 41 | 10 18 . 13 Core Hits 21 | 8 9 . 4 Critical Kills . | . . . . Critical Parts Destroyed . | . . . . Critical Strikes . | . . . . Melee Attacks 20 | . . . 20 Impact 20 | . . . 20 Slashing . | . . . . Piercing . | . . . . Sneak Attacks . | . . . . Combat Hostiles . | . . . . Follow-up Attacks . | . . . . Damage Inflicted 555 | 110 233 . 212 Guns 411 | 110 190 . 111 Cannons 101 | . . . 101 Explosions 42 | . 42 . . Melee . | . . . . Ramming 1 | . 1 . . Kinetic 262 | 27 62 . 173 Thermal 42 | . 42 . . Explosive . | . . . . Electromagnetic 250 | 83 128 . 39 Impact . | . . . . Slashing . | . . . . Piercing . | . . . . Highest Corruption 10 | . . 10 10 Average Corruption 10 | . . 10 10 Corruption Purged . | . . . . Corruption Blocked . | . . . . Effects 16 | . . 1 15 Message Errors 4 | . . 1 3 Matter Fused 6 | . . . 6 Heat Flow Errors 2 | . . . 2 Energy Discharges 2 | . . . 2 Data Loss (major) 1 | . . . 1 Alerts 1 | . . . 1 Overload Shots . | . . . . Overflow Damage 4 | . 4 . . Projectiles . | . . . . Explosions 4 | . 4 . . Melee . | . . . . Knockbacks 1 | . . . 1 Impact . | . . . . Kinetic 1 | . . . 1 Secondary . | . . . . Self-Inflicted Damage . | . . . . Shots . | . . . . Rammed 1 | . 1 . . Targets Rammed 1 | . 1 . . Kicked . | . . . . Crushed . | . . . . Highest Temperature 163 | 40 65 . 163 Average Temperature 33 | 21 27 . 90 Received Heat Transfer 90 | . 18 . 72 Siege Activations . | . . . . Martial Activations . | . . . . Shielding Activations . | . . . . Robots Disrupted . | . . . . Combat Hostiles . | . . . . Robots Corrupted . | . . . . Combat Hostiles . | . . . . Parts Fried . | . . . . Impact Corruptions . | . . . . Robots Melted . | . . . . Combat Hostiles . | . . . . Parts Melted . | . . . . Heat Transferred 100 | . 100 . . Parts Sabotaged . | . . . . Parts Stolen . | . . . . Parts Stripped . | . . . . Power Chain Reactions 1 | . 1 . . Alert | -11 -10 -10 -10 ------- Run | Yrd Mat Min Sub Maximum Alert Level . | . . . . Low Security (%) 100 | 100 100 100 . Level 1 . | . . . . Level 2 . | . . . . Level 3 . | . . . . Level 4 . | . . . . Level 5 . | . . . . High Security . | . . . . Max Security . | . . . . Peak Influence 109 | 10 109 . . Initial . | . . . . Average 9 | 1 33 . . Influence Increases 186 | 30 136 . 20 Destroy 0b10 Robot/C 120 | . 100 . 20 Destroy 0b10 Robot/NC 30 | 30 . . . Destroy Leader 10 | . 10 . . Successful Hack 7 | . 7 . . Destroy Structure 4 | . 4 . . Lose Combat Pursuer 15 | . 15 . . Influence Decreases 186 | 30 136 . 20 Time Decay 186 | 30 136 . 20 Squads Dispatched 1 | . 1 . . Investigation 1 | . 1 . . Extermination . | . . . . Reinforcement . | . . . . Assault . | . . . . Garrison . | . . . . Intercept . | . . . . Searches Triggered . | . . . . Construction Impeded . | . . . . Haulers Reinforced . | . . . . Active Scanning Responses . | . . . . Cargo Convoy Interrupts . | . . . . Stealth | -11 -10 -10 -10 --------- Run | Yrd Mat Min Sub Distress Signals 1 | . . 1 . Communications Jammed . | . . . . Distress Signals . | . . . . Times Spotted 14 | . 11 . 3 Peak Tracking Total 4 | . 4 . 1 Tactical Retreats 1 | . 1 . . Traps | -11 -10 -10 -10 ------- Run | Yrd Mat Min Sub Traps Triggered 3 | . 2 . 1 Indirectly . | . . . . Trap Hack Attempts . | . . . . Triggered . | . . . . Disarmed . | . . . . Reprogrammed . | . . . . Reused . | . . . . Traps Extracted . | . . . . Installed . | . . . . Triggered . | . . . . Machines | -11 -10 -10 -10 ---------- Run | Yrd Mat Min Sub Machines Disabled . | . . . . Max in Single Turn . | . . . . Machines Repaired . | . . . . Machines Dismantled . | . . . . Machines Sabotaged . | . . . . Overloaded Fab Kills . | . . . . Hacking | -11 -10 -10 -10 --------- Run | Yrd Mat Min Sub Machines Accessed 2 | . 2 . . Terminals 2 | . 2 . . Fabricators . | . . . . Repair Stations . | . . . . Recycling Units . | . . . . Scanalyzers . | . . . . Garrison Access . | . . . . Total Hacks 5 | . 5 . . Successful 2 | . 2 . . Failed 3 | . 3 . . Catastrophic 1 | . 1 . . Database Lockouts . | . . . . Manual 2 | . 2 . . Terminals 5 | . 5 . . Fabricators . | . . . . Repair Stations . | . . . . Recycling Units . | . . . . Scanalyzers . | . . . . Garrison Access . | . . . . Terminal Hacks 2 | . 2 . . Record 1 | . 1 . . Prototype ID Bank 1 | . 1 . . Fabricator Hacks . | . . . . Repair Station Hacks . | . . . . Recycling Unit Hacks . | . . . . Scanalyzer . | . . . . Garrison Access Hacks . | . . . . Unauthorized Hacks . | . . . . Terminals . | . . . . Fabricators . | . . . . Repair Stations . | . . . . Recycling Units . | . . . . Scanalyzers . | . . . . Garrison Access . | . . . . Data Cores Recovered . | . . . . Used . | . . . . Hacking Detections 2 | . 2 . . Full Trace Events . | . . . . Feedback Events . | . . . . Feedback Blocked . | . . . . Robot Schematics Acquired . | . . . . Robots Built . | . . . . Authchips . | . . . . Time . | . . . . Total Robot Build Rating . | . . . . Part Schematics Acquired . | . . . . Parts Built . | . . . . Authchips . | . . . . Time . | . . . . Total Part Build Rating . | . . . . Part Studies Acquired . | . . . . Parts Repaired . | . . . . Time . | . . . . Parts Recycled . | . . . . Recycled Matter . | . . . . Retrieved Matter . | . . . . Retrieved Components . | . . . . Parts Scanalyzed . | . . . . Part Schematics Acquired . | . . . . Parts Damaged . | . . . . Bothacking | -11 -10 -10 -10 ------------ Run | Yrd Mat Min Sub Used RIF Installer . | . . . . Robots Hacked . | . . . . Non-combat . | . . . . Combat . | . . . . Robot Hacks Applied . | . . . . Relay Couplers Released . | . . . . Fabnet Peak Effective % . | . . . . Robots Rewired . | . . . . Allies Hacked . | . . . . Hacks Repelled . | . . . . Allies | -11 -10 -10 -10 -------- Run | Yrd Mat Min Sub Total Allies . | . . . . Largest Group . | . . . . Highest-Rated Group . | . . . . Highest-Rated Ally . | . . . . Total Orders . | . . . . Ally Attacks . | . . . . Total Damage . | . . . . Kills . | . . . . Allies Corrupted . | . . . . Allies Melted . | . . . . Intel | -11 -10 -10 -10 ------- Run | Yrd Mat Min Sub Active Infowar (turns) 398 | 37 361 . . Seismic 398 | 37 361 . . Robot Analysis Total . | . . . . Derelict Logs Recovered . | . . . . Drone Launches . | . . . . Drone Recoveries . | . . . . Exploration | -11 -10 -10 -10 ------------- Run | Yrd Mat Min Sub Turns Passed 1904 | 115 433 960 396 Spaces Moved 1254 | 80 339 616 219 Core 5 | 3 . 2 . Treads 6 | . . . 6 Legs . | . . . . Wheels 1243 | 77 339 614 213 Hover . | . . . . Flight . | . . . . Fastest Speed 50 | 50 90 105 110 Average Speed 106 | 88 94 107 128 Slowest Speed 800 | 90 105 800 320 Overloaded Moves . | . . . . Propulsion Burnouts . | . . . . Robots Hopped . | . . . . Potential Cave-ins 22 | . . 18 4 Cave-ins Triggered 2 | . . 1 1 Exploration Rate (%) 35 | 3 31 91 15 Regions Visited 3 Branch Regions 2 Pre-discovered Areas . | . . . . Known Exits Taken 2 | . 1 1 . Unknown Exits Taken 1 | 1 . . . Scrap Searched 1 | . . 1 . Spaces Dug 6 | . . . 6 Terrain Destroyed 9 | . 3 . 6 Melee 6 | . . . 6 Projectile . | . . . . AOE 3 | . 3 . . Terrain Rammed . | . . . . Walls Destroyed . | . . . . Machines Disabled . | . . . . Actions | -11 -10 -10 -10 --------- Run | Yrd Mat Min Sub Total 1722 | 104 425 915 278 Wait 363 | 2 49 296 16 Move 1250 | 79 338 614 219 Hop . | . . . . Pick Up 23 | 7 10 1 5 Fast Attach 10 | 7 2 . 1 Attach 5 | . . 3 2 Detach . | . . . . Swap 8 | . 4 . 4 Drop 7 | . 7 . . Fire 34 | 9 14 . 11 Melee 20 | . . . 20 Ram 1 | . 1 . . Kick . | . . . . Crush . | . . . . Escape Stasis 1 | . . 1 . Rewire . | . . . . Trap . | . . . . Miscellaneous . | . . . . Route ------- -11/Scrapyard -10/Materials -10/Mines (discovered 2 exits: *Mat / *Sub) -10/Subcaves History --------- Turn | Location | Event 15 | -11/Scrapyard | Discovered new exit (range 15) 116 | -11/Scrapyard | Entered Materials 308 | -10/Materials | Build established: Mutant 385 | -10/Materials | Discovered new exit (range 16) 480 | -10/Materials | Identified exit to Mines 549 | -10/Materials | Entered Mines 602 | -10/Mines | Found a damaged Exp. Sensor Array with a note attached 610 | -10/Mines | Found Prototype Device 753 | -10/Mines | Assembled infested the area 758 | -10/Mines | Assisted by a Guerilla fighting off Assembled 1470 | -10/Mines | Discovered new exit (range 12) 1484 | -10/Mines | Discovered new exit (range 5) 1486 | -10/Mines | Identified exit to Materials 1489 | -10/Mines | Crushed by falling debris 1490 | -10/Mines | System corruption reached 10% 1498 | -10/Mines | Identified exit to Subcaves 1509 | -10/Mines | Entered Subcaves 1520 | -10/Subcaves | Lost 3 parts (2n1w) 1577 | -10/Subcaves | Shifting Twisted Machinery released Mak. Sword 1661 | -10/Subcaves | Shifting Twisted Machinery released Battle Cannon 1726 | -10/Subcaves | Core integrity fell below 50% 1900 | -10/Subcaves | Crushed by falling debris 1900 | -10/Subcaves | Core integrity fell below 20% 1905 | -10/Subcaves | Destroyed by NK-Q93(R) with Subdweller Machine Gun Last Messages --------------- 01748_ Subatomizers dissect the Disposable Heat Sink. 01810_ System corrupted: Substantial component data lost. 01816_ G8-8JM(R) knocked back. 01820_ Acquired 2 matter. 01822_ Wheel destroyed. 01825_ System corrupted: IFF burst signal emitted. 01825_ G8-8JM(R) destroyed. 01837_ Acquired Sub. Monowheel. 01847_ System corrupted: Matter fused (-10). 01849_ Acquired 6 matter. 01857_ Acquired 9 matter. 01862_ System corrupted: Energy discharge (-66). 01888_ /MA0DSAEBXG83,LAS8D 01894_ The unstable cave ceiling collapses. 01896_ Imp. Ion Engine destroyed. 01900_ The unstable cave ceiling collapses. 01900_ Crushed by falling debris. Map ----- +----------------------------------------------------+ | ?????????????????????????????????????????????????? | | ?????????????????????????????????????????????????? | | ?????????????????????????????????????????????????? | | ?????????????????????????????????????????????????? | | ?????????????????????????????????????????????????? | | ?????????????????????????????????????????????????? | | ?????????????????????????????????????????????????? | | ?????????????????????????????????????????????????? | | ?????????????????????????????????????????????????? | | ?????????????????????????????????????????????????? | | ?????????????????????????????????????????????????? | | ?????????????????????????????????????????????????? | | ?????????????????????????????????????????????????? | | ?????????????????????????????????????????????????? | | ?????????????????????????????????????????????????? | | ?????????????????????????????????????????????????? | | ?????????????????????????????????????????????????? | | ?????????????????????????????????????????????????? | | ?????????????????????????????????????????????????? | | ?????????????????????##########??????????????????? | | ?????????????????????# # # ######?????????????? | | ?????????????????????# ""#?????????????? | | ?????????????????????#% " "#?????????????? | | ?????????????????????## " # #""" ##????????????? | | ?????????????????????## "### #"" " #????????????? | | ?????????????????????# "R@##"""" "####???????### | | ?????????????????????##"####"" " " ##??????# | | ?????????????????????#""???#""###" ##?????# | | ?????????????????????#" ??#"""#?#### ####### | | ?????????????????????#????#" ##????##### %& | | ??????????????????????????#?????????#### & | | ????????????????????????????????????#" # | | ????????????????????????????????????# | | ????????????????????????????????????## | | ?????????????????????????????????????# # | | ?????????????????????????????????????####### #### | | ???????????????????????????????????????????# ##??? | | ???????????????????????????????????????????###???? | | ?????????????????????????????????????????????????? | | ?????????????????????????????????????????????????? | | ?????????????????????????????????????????????????? | | ?????????????????????????????????????????????????? | | ?????????????????????????????????????????????????? | | ?????????????????????????????????????????????????? | | ?????????????????????????????????????????????????? | | ?????????????????????????????????????????????????? | | ?????????????????????????????????????????????????? | | ?????????????????????????????????????????????????? | | ?????????????????????????????????????????????????? | | ?????????????????????????????????????????????????? | +----------------------------------------------------+ Best States ------------- Heat Dissipation 25 Energy Generation 12 Energy Capacity 265 Matter Stores 300 Matter Capacity 300 Sight Range 16 Terrain Scan Density 10 Evasion (%) 42 Recoil Reduction 1 Item Schematics ----------------- None Robot Schematics ------------------ None Fabricated ------------ Nothing Repaired ---------- Nothing Studied --------- None Alien Tech Used ----------------- None Achievements -------------- None Challenges ------------ None Game ------ Seed SmallAblativeWings Manual? 0 Play Time 00:23:05 Cumulative 14.6 hours Start 2026.06.17 @ 15:51:18 End 2026.06.17 @ 16:16:11 Sessions 1 Manual Loads 0 Difficulty Rogue Special Mode None Game No. 19 Rogue 15 Adventurer 4 Explorer 0 Win Type - Total 0 Types 0/0/0/0/0/0/0/0/0/0 Lore% 3 Gallery% 10 Achievement% 11 Wizard Run 0 Options --------- Layout 2 ASCII 0 Keyboard 1 Movement Numpad Keybinds 0 Fullscreen 1 Font 24/Terminus Map View 50x44 Zoom Use 14% Tactical HUD 1 Map Filters NONE Filters NONE Steam 1 RUN: a448945d-fe2c-48e3-8c38-19c49b10ed73